[Event "*** Titled Tuesday Blitz"]
[Site "Chess.com"]
[Date "2020.11.24"]
[Round "1"]
[White "anon219"]
[Black "guillembaches"]
[Result "1-0"]
[WhiteElo "2767"]
[BlackElo "2399"]
[TimeControl "180+1"]
[EndTime "10:23:27 PST"]
[Termination "anon219 won by resignation"]

1. e4 {[%clk 0:03:00.9]} 1... c5 {[%clk 0:02:59.9]} 2. Nf3 {[%clk 0:03:01.1]}
2... d6 {[%clk 0:03:00.5]} 3. d4 {[%clk 0:03:01.2]} 3... cxd4 {[%clk 0:03:01.4]}
4. Nxd4 {[%clk 0:03:01.1]} 4... Nf6 {[%clk 0:03:02]} 5. Nc3 {[%clk 0:03:01.6]}
5... Nc6 {[%clk 0:03:02.5]} 6. f3 {[%clk 0:03:01.2]} 6... e5 {[%clk 0:03:01.9]}
7. Nb3 {[%clk 0:03:00.6]} 7... Be7 {[%clk 0:03:01.6]} 8. Be3 {[%clk 0:02:40.4]}
8... O-O {[%clk 0:03:01.3]} 9. Qd2 {[%clk 0:02:33.8]} 9... a5 {[%clk 0:03:00.9]}
10. Bb5 {[%clk 0:02:28.3]} 10... Be6 {[%clk 0:02:55.2]} 11. O-O-O {[%clk
0:02:26.5]} 11... Na7 {[%clk 0:02:52]} 12. Bxa7 {[%clk 0:02:23.5]} 12... Rxa7
{[%clk 0:02:52.1]} 13. Kb1 {[%clk 0:02:24.4]} 13... Qb8 {[%clk 0:02:23.2]} 14.
g4 {[%clk 0:02:22.6]} 14... Rc8 {[%clk 0:02:07.1]} 15. g5 {[%clk 0:02:15.2]}
15... Ne8 {[%clk 0:02:07.1]} 16. h4 {[%clk 0:02:10.1]} 16... a4 {[%clk
0:01:54.8]} 17. Nxa4 {[%clk 0:02:01.4]} 17... Rxa4 {[%clk 0:01:46.9]} 18. Bxa4
{[%clk 0:01:53.3]} 18... b5 {[%clk 0:01:47]} 19. Bxb5 {[%clk 0:01:48.5]} 19...
Qxb5 {[%clk 0:01:47.9]} 20. h5 {[%clk 0:01:38.3]} 20... Ra8 {[%clk 0:01:38.1]}
21. g6 {[%clk 0:01:34.3]} 21... h6 {[%clk 0:01:29.1]} 22. gxf7+ {[%clk
0:01:30.9]} 22... Bxf7 {[%clk 0:01:29.1]} 23. Rhg1 {[%clk 0:01:30.1]} 23... Bg5
{[%clk 0:01:18.5]} 24. Qd3 {[%clk 0:01:26.1]} 24... Qxd3 {[%clk 0:00:58.9]} 25.
Rxd3 {[%clk 0:01:14.7]} 25... Bxh5 {[%clk 0:00:58.9]} 26. Nc1 {[%clk 0:00:55.9]}
26... Bf7 {[%clk 0:00:48]} 27. b3 {[%clk 0:00:54.1]} 27... Bd8 {[%clk 0:00:42]}
28. Ne2 {[%clk 0:00:51.3]} 28... Bb6 {[%clk 0:00:40.1]} 29. Rg2 {[%clk
0:00:48.4]} 29... h5 {[%clk 0:00:38.9]} 30. f4 {[%clk 0:00:47.4]} 30... Kf8
{[%clk 0:00:33.2]} 31. fxe5 {[%clk 0:00:45.3]} 31... dxe5 {[%clk 0:00:33.6]} 32.
Ng3 {[%clk 0:00:45.9]} 32... g6 {[%clk 0:00:31.9]} 33. Rf3 {[%clk 0:00:44.5]}
33... Ke7 {[%clk 0:00:31.7]} 34. Rd2 {[%clk 0:00:42.1]} 34... Nd6 {[%clk
0:00:31]} 35. Rxd6 {[%clk 0:00:40.8]} 35... Kxd6 {[%clk 0:00:30.2]} 36. Rxf7
{[%clk 0:00:41]} 36... Ke6 {[%clk 0:00:22.6]} 37. Rb7 {[%clk 0:00:41.1]} 37...
Bd4 {[%clk 0:00:21.8]} 38. Ne2 {[%clk 0:00:36.7]} 38... h4 {[%clk 0:00:21.2]}
39. c3 {[%clk 0:00:35.2]} 39... Be3 {[%clk 0:00:20.5]} 40. Rh7 {[%clk
0:00:34.5]} 40... g5 {[%clk 0:00:20.3]} 41. a4 {[%clk 0:00:33.2]} 41... Rg8
{[%clk 0:00:16.5]} 42. Kc2 {[%clk 0:00:32]} 42... g4 {[%clk 0:00:13.8]} 43. Rxh4
{[%clk 0:00:30.2]} 43... g3 {[%clk 0:00:13.9]} 44. Rh3 {[%clk 0:00:28.6]} 44...
Bf2 {[%clk 0:00:12.8]} 45. a5 {[%clk 0:00:27.5]} 45... g2 {[%clk 0:00:12.6]} 46.
b4 {[%clk 0:00:27.9]} 46... g1=Q {[%clk 0:00:12.4]} 47. Nxg1 {[%clk 0:00:28.4]}
47... Bxg1 {[%clk 0:00:11.7]} 48. Kb3 {[%clk 0:00:29.3]} 48... Rg4 {[%clk
0:00:05.7]} 49. Rh6+ {[%clk 0:00:29.3]} 49... Kd7 {[%clk 0:00:05.2]} 50. a6
{[%clk 0:00:30.2]} 50... Rxe4 {[%clk 0:00:04.9]} 51. a7 {[%clk 0:00:30.3]} 51...
Bxa7 {[%clk 0:00:03.8]} 52. Rh7+ {[%clk 0:00:30.7]} 52... Kc6 {[%clk 0:00:03.5]}
53. Rxa7 {[%clk 0:00:31.6]} 53... Re1 {[%clk 0:00:02.4]} 54. Re7 {[%clk
0:00:31.5]} 54... Kd5 {[%clk 0:00:02]} 55. Rd7+ {[%clk 0:00:29.2]} 55... Ke4
{[%clk 0:00:02.3]} 56. Kc4 {[%clk 0:00:28.7]} 56... Kf3 {[%clk 0:00:02.6]} 57.
Rf7+ {[%clk 0:00:28.3]} 57... Ke3 {[%clk 0:00:02.1]} 58. Re7 {[%clk 0:00:28.2]}
58... e4 {[%clk 0:00:02.6]} 59. b5 {[%clk 0:00:28]} 59... Kf3 {[%clk 0:00:02.9]}
60. Kc5 {[%clk 0:00:26.9]} 60... Rb1 {[%clk 0:00:03.2]} 61. c4 {[%clk
0:00:26.2]} 61... e3 {[%clk 0:00:03.7]} 62. Kc6 {[%clk 0:00:26.2]} 62... e2
{[%clk 0:00:04.1]} 63. b6 {[%clk 0:00:25.4]} 63... Rb3 {[%clk 0:00:04.1]} 64. b7
{[%clk 0:00:20.4]} 64... Re3 {[%clk 0:00:03.5]} 65. Rxe3+ {[%clk 0:00:20.1]}
65... Kxe3 {[%clk 0:00:04.4]} 66. b8=Q {[%clk 0:00:20.7]} 66... e1=Q {[%clk
0:00:04.9]} 67. Qe5+ {[%clk 0:00:21.3]} 1-0

[Event "*** Titled Tuesday Blitz"]
[Site "Chess.com"]
[Date "2020.11.24"]
[Round "1"]
[White "dosto07"]
[Black "Gevo1990"]
[Result "1-0"]
[WhiteElo "2317"]
[BlackElo "2558"]
[TimeControl "180+1"]
[EndTime "10:23:27 PST"]
[Termination "dosto07 won by checkmate"]

1. d4 {[%clk 0:02:59.5]} 1... Nf6 {[%clk 0:02:55.7]} 2. Nf3 {[%clk 0:02:59.3]}
2... g6 {[%clk 0:02:55.6]} 3. Bf4 {[%clk 0:02:59.1]} 3... Bg7 {[%clk 0:02:55.9]}
4. Nc3 {[%clk 0:02:59.6]} 4... O-O {[%clk 0:02:56.5]} 5. e4 {[%clk 0:02:59.5]}
5... d6 {[%clk 0:02:55.8]} 6. Qd2 {[%clk 0:02:59.6]} 6... c6 {[%clk 0:02:53.1]}
7. Bh6 {[%clk 0:02:56.7]} 7... b5 {[%clk 0:02:53.5]} 8. a3 {[%clk 0:02:50]} 8...
Qa5 {[%clk 0:02:52.3]} 9. Bxg7 {[%clk 0:02:45.6]} 9... Kxg7 {[%clk 0:02:51.8]}
10. Bd3 {[%clk 0:02:44.6]} 10... Bg4 {[%clk 0:02:45.7]} 11. e5 {[%clk
0:02:28.1]} 11... Nfd7 {[%clk 0:02:39.7]} 12. exd6 {[%clk 0:02:23.4]} 12... Bxf3
{[%clk 0:02:36.3]} 13. dxe7 {[%clk 0:02:18]} 13... Re8 {[%clk 0:02:36.6]} 14.
gxf3 {[%clk 0:02:17.4]} 14... Rxe7+ {[%clk 0:02:37]} 15. Ne2 {[%clk 0:02:17.6]}
15... Qxd2+ {[%clk 0:02:36.1]} 16. Kxd2 {[%clk 0:02:17.3]} 16... Nf6 {[%clk
0:02:37]} 17. Ng3 {[%clk 0:02:15]} 17... Nbd7 {[%clk 0:02:35.9]} 18. Rhe1 {[%clk
0:02:14.6]} 18... Rae8 {[%clk 0:02:34.9]} 19. Rxe7 {[%clk 0:02:11]} 19... Rxe7
{[%clk 0:02:35.1]} 20. a4 {[%clk 0:02:11.9]} 20... b4 {[%clk 0:02:33]} 21. Ne4
{[%clk 0:02:11.4]} 21... Nd5 {[%clk 0:02:32]} 22. Re1 {[%clk 0:02:05.9]} 22...
h6 {[%clk 0:02:18.8]} 23. Nc5 {[%clk 0:01:55.9]} 23... Rxe1 {[%clk 0:02:17]} 24.
Kxe1 {[%clk 0:01:55.3]} 24... Nxc5 {[%clk 0:02:17.9]} 25. dxc5 {[%clk
0:01:54.3]} 25... Kf6 {[%clk 0:02:18.8]} 26. Ba6 {[%clk 0:01:43.8]} 26... Ke5
{[%clk 0:02:17.1]} 27. Bb7 {[%clk 0:01:43.2]} 27... Ne7 {[%clk 0:02:16.8]} 28.
Kd2 {[%clk 0:01:40.4]} 28... Kd4 {[%clk 0:02:16.3]} 29. c3+ {[%clk 0:01:39.5]}
29... bxc3+ {[%clk 0:02:16]} 30. bxc3+ {[%clk 0:01:40.4]} 30... Kxc5 {[%clk
0:02:16.8]} 31. Kd3 {[%clk 0:01:39.1]} 31... f5 {[%clk 0:02:17.4]} 32. a5 {[%clk
0:01:34.8]} 32... Kb5 {[%clk 0:02:09.7]} 33. a6 {[%clk 0:01:32.5]} 33... Kc5
{[%clk 0:02:10.2]} 34. h4 {[%clk 0:01:31.5]} 34... g5 {[%clk 0:02:06.9]} 35.
hxg5 {[%clk 0:01:30.9]} 35... hxg5 {[%clk 0:01:47.3]} 36. Ba8 {[%clk 0:01:26.3]}
36... Nd5 {[%clk 0:01:36.2]} 37. Bb7 {[%clk 0:01:25.2]} 37... Nb6 {[%clk
0:01:35.7]} 38. Ke3 {[%clk 0:01:21.6]} 38... Kd5 {[%clk 0:01:34.8]} 39. Kd2
{[%clk 0:01:21.8]} 39... Nc4+ {[%clk 0:01:30]} 40. Kd3 {[%clk 0:01:21.3]} 40...
Nd6 {[%clk 0:01:30.3]} 41. Ke3 {[%clk 0:01:17.8]} 41... Kc5 {[%clk 0:01:21.5]}
42. Kd3 {[%clk 0:01:17.3]} 42... f4 {[%clk 0:01:06.1]} 43. Ba8 {[%clk
0:01:11.8]} 43... Kd5 {[%clk 0:00:54.1]} 44. Bb7 {[%clk 0:01:08.8]} 44... Nf7
{[%clk 0:00:46.7]} 45. c4+ {[%clk 0:00:49.8]} 45... Kc5 {[%clk 0:00:46.2]} 46.
Ke4 {[%clk 0:00:47.9]} 46... Nh6 {[%clk 0:00:36.1]} 47. Ke5 {[%clk 0:00:45.4]}
47... Nf7+ {[%clk 0:00:32.3]} 48. Kf6 {[%clk 0:00:44.4]} 48... Nd6 {[%clk
0:00:32.9]} 49. Kxg5 {[%clk 0:00:43]} 49... Nxc4 {[%clk 0:00:33.4]} 50. Kxf4
{[%clk 0:00:41.9]} 50... Nd6 {[%clk 0:00:30.2]} 51. Ke5 {[%clk 0:00:40.7]} 51...
Nc4+ {[%clk 0:00:30.6]} 52. Ke6 {[%clk 0:00:39.6]} 52... Nd2 {[%clk 0:00:25.6]}
53. f4 {[%clk 0:00:39.4]} 53... Ne4 {[%clk 0:00:26.5]} 54. f3 {[%clk 0:00:33.5]}
54... Nd2 {[%clk 0:00:26.1]} 55. f5 {[%clk 0:00:32.9]} 55... Nxf3 {[%clk
0:00:26.7]} 56. f6 {[%clk 0:00:33.3]} 56... Ng5+ {[%clk 0:00:27]} 57. Ke7 {[%clk
0:00:32.1]} 57... Kb5 {[%clk 0:00:26.1]} 58. f7 {[%clk 0:00:25.4]} 58... c5
{[%clk 0:00:24.3]} 59. f8=Q {[%clk 0:00:24.1]} 59... c4 {[%clk 0:00:23.6]} 60.
Qf5+ {[%clk 0:00:23.5]} 60... Kb6 {[%clk 0:00:21.2]} 61. Qxg5 {[%clk 0:00:24.4]}
61... c3 {[%clk 0:00:22]} 62. Qc1 {[%clk 0:00:23.6]} 62... c2 {[%clk 0:00:22.9]}
63. Qxc2 {[%clk 0:00:23.6]} 63... Kb5 {[%clk 0:00:22.7]} 64. Qc6+ {[%clk
0:00:23.1]} 64... Ka5 {[%clk 0:00:22.6]} 65. Qd5+ {[%clk 0:00:22]} 65... Kb6
{[%clk 0:00:22.3]} 66. Bc6 {[%clk 0:00:21.4]} 66... Kc7 {[%clk 0:00:22.2]} 67.
Qd7+ {[%clk 0:00:21.2]} 67... Kb6 {[%clk 0:00:21.5]} 68. Qb7+ {[%clk 0:00:21]}
68... Ka5 {[%clk 0:00:21.9]} 69. Qxa7 {[%clk 0:00:20.5]} 69... Kb4 {[%clk
0:00:21.8]} 70. Kd6 {[%clk 0:00:20.2]} 70... Ka5 {[%clk 0:00:22]} 71. Bd5 {[%clk
0:00:21.1]} 71... Kb5 {[%clk 0:00:21.8]} 72. Qc5+ {[%clk 0:00:20.3]} 72... Kxa6
{[%clk 0:00:22.2]} 73. Qb4 {[%clk 0:00:19.3]} 73... Ka7 {[%clk 0:00:22.1]} 74.
Kc5 {[%clk 0:00:18.9]} 74... Ka6 {[%clk 0:00:23]} 75. Kc6 {[%clk 0:00:17]} 75...
Ka7 {[%clk 0:00:22.9]} 76. Qb7# {[%clk 0:00:16.4]} 1-0

[Event "*** Titled Tuesday Blitz"]
[Site "Chess.com"]
[Date "2020.11.24"]
[Round "1"]
[White "SARGISMV"]
[Black "frequentblunders"]
[Result "1-0"]
[WhiteElo "2498"]
[BlackElo "2073"]
[TimeControl "180+1"]
[EndTime "10:23:34 PST"]
[Termination "SARGISMV won by checkmate"]

1. d4 {[%clk 0:02:37.8]} 1... e6 {[%clk 0:03:00.7]} 2. Nf3 {[%clk 0:02:37]} 2...
c5 {[%clk 0:02:58.5]} 3. c4 {[%clk 0:02:34.1]} 3... Nf6 {[%clk 0:02:57.5]} 4. d5
{[%clk 0:02:33.8]} 4... g6 {[%clk 0:02:54.6]} 5. Nc3 {[%clk 0:02:33.8]} 5... Bg7
{[%clk 0:02:53.7]} 6. Bg5 {[%clk 0:02:33.3]} 6... O-O {[%clk 0:02:50.7]} 7. Qd2
{[%clk 0:02:32.9]} 7... exd5 {[%clk 0:02:46.1]} 8. cxd5 {[%clk 0:02:32.5]} 8...
d6 {[%clk 0:02:44.3]} 9. e4 {[%clk 0:02:30.5]} 9... Re8 {[%clk 0:02:43.7]} 10.
Bd3 {[%clk 0:02:30.1]} 10... Nbd7 {[%clk 0:02:40.1]} 11. O-O {[%clk 0:02:28.5]}
11... a6 {[%clk 0:02:37.5]} 12. a4 {[%clk 0:02:27.3]} 12... Qa5 {[%clk
0:02:32.7]} 13. Rfe1 {[%clk 0:02:24.4]} 13... Ne5 {[%clk 0:02:17.8]} 14. Nxe5
{[%clk 0:02:22.2]} 14... dxe5 {[%clk 0:02:18.7]} 15. Rad1 {[%clk 0:02:03.3]}
15... Bd7 {[%clk 0:02:17.4]} 16. Qe2 {[%clk 0:01:59.4]} 16... Bxa4 {[%clk
0:02:09.3]} 17. Ra1 {[%clk 0:01:56.5]} 17... b5 {[%clk 0:02:07.2]} 18. Nxa4
{[%clk 0:01:28.1]} 18... bxa4 {[%clk 0:02:08.1]} 19. Bd2 {[%clk 0:01:28.4]}
19... Qb6 {[%clk 0:02:06]} 20. Rxa4 {[%clk 0:01:24]} 20... a5 {[%clk 0:01:51]}
21. Bc3 {[%clk 0:01:20.5]} 21... Nh5 {[%clk 0:01:48]} 22. g3 {[%clk 0:01:19]}
22... Bf8 {[%clk 0:01:41.7]} 23. Rea1 {[%clk 0:01:17.4]} 23... Reb8 {[%clk
0:01:30.8]} 24. Rxa5 {[%clk 0:01:16]} 24... Rxa5 {[%clk 0:01:30.4]} 25. Rxa5
{[%clk 0:01:16.4]} 25... Qb3 {[%clk 0:01:28.9]} 26. Bc4 {[%clk 0:01:09.7]} 26...
Qb6 {[%clk 0:01:28.6]} 27. Ra6 {[%clk 0:01:05.3]} 27... Qb7 {[%clk 0:01:27.1]}
28. Qf3 {[%clk 0:01:00.6]} 28... f6 {[%clk 0:01:22.3]} 29. Qg4 {[%clk
0:00:30.9]} 29... Kg7 {[%clk 0:01:21.8]} 30. Qe6 {[%clk 0:00:25.3]} 30... Qf7
{[%clk 0:01:18.6]} 31. Qc6 {[%clk 0:00:19.9]} 31... Qb7 {[%clk 0:01:14.7]} 32.
Qa4 {[%clk 0:00:19.4]} 32... Qc8 {[%clk 0:00:38.2]} 33. Kg2 {[%clk 0:00:17.2]}
33... Rb7 {[%clk 0:00:36.7]} 34. Ra8 {[%clk 0:00:16.8]} 34... Qc7 {[%clk
0:00:35.3]} 35. Qe8 {[%clk 0:00:16.5]} 35... Qe7 {[%clk 0:00:35.2]} 36. Qc8
{[%clk 0:00:16]} 36... Rc7 {[%clk 0:00:34.8]} 37. Qb8 {[%clk 0:00:15.8]} 37...
Qd6 {[%clk 0:00:34.3]} 38. Bb5 {[%clk 0:00:13.4]} 38... f5 {[%clk 0:00:33.1]}
39. Bd3 {[%clk 0:00:12.7]} 39... f4 {[%clk 0:00:32.9]} 40. g4 {[%clk 0:00:12.6]}
40... Nf6 {[%clk 0:00:32.8]} 41. f3 {[%clk 0:00:12.7]} 41... h5 {[%clk
0:00:32.8]} 42. h3 {[%clk 0:00:12.4]} 42... hxg4 {[%clk 0:00:32.6]} 43. hxg4
{[%clk 0:00:13.3]} 43... Nd7 {[%clk 0:00:32.6]} 44. Qe8 {[%clk 0:00:12.6]} 44...
Qe7 {[%clk 0:00:31.7]} 45. Rd8 {[%clk 0:00:11.6]} 45... Qxe8 {[%clk 0:00:32]}
46. Rxe8 {[%clk 0:00:12.5]} 46... Kf7 {[%clk 0:00:32.4]} 47. Re6 {[%clk
0:00:12]} 47... Be7 {[%clk 0:00:31.9]} 48. Bxe5 {[%clk 0:00:11.2]} 48... Nxe5
{[%clk 0:00:31.6]} 49. Rxe5 {[%clk 0:00:12.1]} 49... Bf6 {[%clk 0:00:32.3]} 50.
Re6 {[%clk 0:00:12.5]} 50... Bxb2 {[%clk 0:00:33.2]} 51. Bc4 {[%clk 0:00:12.9]}
51... Rb7 {[%clk 0:00:33]} 52. e5 {[%clk 0:00:12.8]} 52... Rb4 {[%clk
0:00:33.9]} 53. Bd3 {[%clk 0:00:08.7]} 53... c4 {[%clk 0:00:34.3]} 54. Bxg6+
{[%clk 0:00:08.6]} 54... Kg7 {[%clk 0:00:34.9]} 55. d6 {[%clk 0:00:08.8]} 55...
Bxe5 {[%clk 0:00:34.9]} 56. Rxe5 {[%clk 0:00:08]} 56... Rb2+ {[%clk 0:00:35.8]}
57. Kh3 {[%clk 0:00:07.2]} 57... Rd2 {[%clk 0:00:36.4]} 58. Bf5 {[%clk
0:00:06.7]} 58... c3 {[%clk 0:00:36.5]} 59. Rc5 {[%clk 0:00:07]} 59... c2 {[%clk
0:00:37]} 60. Rxc2 {[%clk 0:00:06.9]} 60... Rxd6 {[%clk 0:00:37.8]} 61. Re2
{[%clk 0:00:06.6]} 61... Rh6+ {[%clk 0:00:38.7]} 62. Kg2 {[%clk 0:00:06.7]}
62... Rd6 {[%clk 0:00:39.3]} 63. Re4 {[%clk 0:00:07.6]} 63... Kf6 {[%clk
0:00:39.1]} 64. Rxf4 {[%clk 0:00:07.3]} 64... Kg5 {[%clk 0:00:39.9]} 65. Re4
{[%clk 0:00:07.9]} 65... Rd2+ {[%clk 0:00:40.1]} 66. Kg3 {[%clk 0:00:08.3]}
66... Rd3 {[%clk 0:00:34]} 67. Re6 {[%clk 0:00:07.8]} 67... Rd6 {[%clk
0:00:23.9]} 68. f4# {[%clk 0:00:06.1]} 1-0

[Event "*** Titled Tuesday Blitz"]
[Site "Chess.com"]
[Date "2020.11.24"]
[Round "1"]
[White "Ranindu2003"]
[Black "Hercog"]
[Result "1-0"]
[WhiteElo "2569"]
[BlackElo "2274"]
[TimeControl "180+1"]
[EndTime "10:23:36 PST"]
[Termination "Ranindu2003 won on time"]

1. e4 {[%clk 0:02:56.6]} 1... c6 {[%clk 0:02:59.5]} 2. d4 {[%clk 0:02:56.4]}
2... d5 {[%clk 0:02:59.7]} 3. e5 {[%clk 0:02:57]} 3... Bf5 {[%clk 0:02:59.9]} 4.
Nd2 {[%clk 0:02:57.5]} 4... e6 {[%clk 0:02:59.5]} 5. Nb3 {[%clk 0:02:58.2]} 5...
Nd7 {[%clk 0:02:59.2]} 6. Nf3 {[%clk 0:02:58.8]} 6... Ne7 {[%clk 0:02:58.7]} 7.
Be2 {[%clk 0:02:59.1]} 7... Nc8 {[%clk 0:02:58.5]} 8. O-O {[%clk 0:02:58.6]}
8... Be7 {[%clk 0:02:58.7]} 9. a4 {[%clk 0:02:58.9]} 9... O-O {[%clk 0:02:58.1]}
10. a5 {[%clk 0:02:59.1]} 10... a6 {[%clk 0:02:58.4]} 11. Bd3 {[%clk 0:02:59.6]}
11... Bxd3 {[%clk 0:02:57.2]} 12. Qxd3 {[%clk 0:03:00.5]} 12... Na7 {[%clk
0:02:57.1]} 13. Ra4 {[%clk 0:02:55.7]} 13... Nb5 {[%clk 0:02:49.8]} 14. Be3
{[%clk 0:02:50.1]} 14... Rc8 {[%clk 0:02:48.6]} 15. Rd1 {[%clk 0:02:38.7]} 15...
f5 {[%clk 0:02:48.1]} 16. exf6 {[%clk 0:02:30.8]} 16... Bxf6 {[%clk 0:02:48]}
17. c4 {[%clk 0:02:18.4]} 17... Nd6 {[%clk 0:02:43.5]} 18. Nbd2 {[%clk
0:02:13.3]} 18... Qe8 {[%clk 0:02:36.2]} 19. Re1 {[%clk 0:02:02.9]} 19... Qh5
{[%clk 0:02:35]} 20. Bf4 {[%clk 0:01:58.5]} 20... Nf5 {[%clk 0:02:24.7]} 21.
Rxe6 {[%clk 0:01:45.7]} 21... Nxd4 {[%clk 0:02:20.1]} 22. cxd5 {[%clk
0:01:19.3]} 22... Nxf3+ {[%clk 0:02:15.9]} 23. Nxf3 {[%clk 0:01:20.2]} 23...
Qxd5 {[%clk 0:02:13.1]} 24. Qc4 {[%clk 0:00:58.1]} 24... Rfe8 {[%clk 0:01:41.8]}
25. Rd6 {[%clk 0:00:50.1]} 25... Qxc4 {[%clk 0:01:39.1]} 26. Rxc4 {[%clk
0:00:50.8]} 26... Rcd8 {[%clk 0:01:23.3]} 27. h3 {[%clk 0:00:49.2]} 27... Nf8
{[%clk 0:01:15.3]} 28. Rb4 {[%clk 0:00:40.3]} 28... Ne6 {[%clk 0:01:04]} 29. Bg3
{[%clk 0:00:35.9]} 29... Rxd6 {[%clk 0:00:53.1]} 30. Bxd6 {[%clk 0:00:36.8]}
30... Be7 {[%clk 0:00:52.9]} 31. Bxe7 {[%clk 0:00:34.2]} 31... Rxe7 {[%clk
0:00:53]} 32. Re4 {[%clk 0:00:35.1]} 32... Kf8 {[%clk 0:00:50.5]} 33. Ne5 {[%clk
0:00:29.5]} 33... Nc5 {[%clk 0:00:47]} 34. Rf4+ {[%clk 0:00:29.3]} 34... Ke8
{[%clk 0:00:46.2]} 35. Nc4 {[%clk 0:00:29.5]} 35... Kd7 {[%clk 0:00:29.9]} 36.
Rd4+ {[%clk 0:00:28.4]} 36... Kc7 {[%clk 0:00:29.8]} 37. Rh4 {[%clk 0:00:28.4]}
37... h6 {[%clk 0:00:29.6]} 38. Rf4 {[%clk 0:00:25.6]} 38... Nd7 {[%clk
0:00:18.7]} 39. b4 {[%clk 0:00:19.8]} 39... Nf6 {[%clk 0:00:18.5]} 40. Ne3
{[%clk 0:00:19.3]} 40... Nd5 {[%clk 0:00:17.6]} 41. Nxd5+ {[%clk 0:00:10.1]}
41... cxd5 {[%clk 0:00:17.9]} 42. Rf8 {[%clk 0:00:09.4]} 42... Kc6 {[%clk
0:00:17.5]} 43. Kf1 {[%clk 0:00:06.4]} 43... Rd7 {[%clk 0:00:16.6]} 44. Ke2
{[%clk 0:00:05.2]} 44... Kb5 {[%clk 0:00:16.8]} 45. Rf4 {[%clk 0:00:04.3]} 45...
d4 {[%clk 0:00:17.1]} 46. Kd3 {[%clk 0:00:04.9]} 46... Kxb4 {[%clk 0:00:17.5]}
47. Rf5 {[%clk 0:00:05.6]} 47... Ka4 {[%clk 0:00:13.5]} 48. f4 {[%clk
0:00:05.7]} 48... Kb4 {[%clk 0:00:12.2]} 49. g4 {[%clk 0:00:06]} 49... Ka4
{[%clk 0:00:09.4]} 50. h4 {[%clk 0:00:06.5]} 50... Kb4 {[%clk 0:00:04.9]} 51. g5
{[%clk 0:00:06.8]} 51... hxg5 {[%clk 0:00:04.8]} 52. fxg5 {[%clk 0:00:07.7]}
52... Ka4 {[%clk 0:00:04.3]} 53. Re5 {[%clk 0:00:07.8]} 53... Kb4 {[%clk
0:00:03.2]} 54. h5 {[%clk 0:00:08.3]} 54... Ka4 {[%clk 0:00:03.3]} 55. g6 {[%clk
0:00:08.8]} 55... Kb4 {[%clk 0:00:03]} 56. Rg5 {[%clk 0:00:09.5]} 56... Rd8
{[%clk 0:00:01.2]} 57. Rf5 {[%clk 0:00:08.5]} 1-0

[Event "*** Titled Tuesday Blitz"]
[Site "Chess.com"]
[Date "2020.11.24"]
[Round "1"]
[White "kleopl"]
[Black "tan275"]
[Result "1/2-1/2"]
[WhiteElo "2517"]
[BlackElo "2192"]
[TimeControl "180+1"]
[EndTime "10:23:47 PST"]
[Termination "Game drawn - insufficient material"]

1. c4 {[%clk 0:02:59.5]} 1... e6 {[%clk 0:02:58.7]} 2. Nc3 {[%clk 0:02:59]} 2...
d5 {[%clk 0:02:59]} 3. d4 {[%clk 0:02:58.4]} 3... Nf6 {[%clk 0:02:58.3]} 4. cxd5
{[%clk 0:02:55.8]} 4... exd5 {[%clk 0:02:57.9]} 5. Bg5 {[%clk 0:02:55.3]} 5...
Be7 {[%clk 0:02:57.6]} 6. e3 {[%clk 0:02:55.5]} 6... c6 {[%clk 0:02:57.6]} 7.
Bd3 {[%clk 0:02:55.7]} 7... Nbd7 {[%clk 0:02:57.3]} 8. Nf3 {[%clk 0:02:54.7]}
8... O-O {[%clk 0:02:53.2]} 9. O-O {[%clk 0:02:54.6]} 9... Re8 {[%clk
0:02:52.9]} 10. Rb1 {[%clk 0:02:54.1]} 10... Nf8 {[%clk 0:02:48.8]} 11. Bxf6
{[%clk 0:02:53.2]} 11... Bxf6 {[%clk 0:02:47]} 12. b4 {[%clk 0:02:53.5]} 12...
a6 {[%clk 0:02:46.6]} 13. a4 {[%clk 0:02:53.1]} 13... Ng6 {[%clk 0:02:38.8]} 14.
Qc2 {[%clk 0:02:50.2]} 14... Bg4 {[%clk 0:02:30.5]} 15. Nd2 {[%clk 0:02:43.7]}
15... Rc8 {[%clk 0:02:25]} 16. Rfc1 {[%clk 0:02:41.6]} 16... Nf8 {[%clk
0:02:04.9]} 17. Nf1 {[%clk 0:02:39.7]} 17... h5 {[%clk 0:02:02.7]} 18. Bf5
{[%clk 0:02:34.4]} 18... Bxf5 {[%clk 0:01:56.2]} 19. Qxf5 {[%clk 0:02:35.3]}
19... g6 {[%clk 0:01:51.2]} 20. Qf3 {[%clk 0:02:35.3]} 20... Ne6 {[%clk
0:01:47.5]} 21. b5 {[%clk 0:02:35.3]} 21... Ng5 {[%clk 0:01:43.6]} 22. Qd1
{[%clk 0:02:25.3]} 22... a5 {[%clk 0:01:40.4]} 23. bxc6 {[%clk 0:02:21.2]} 23...
bxc6 {[%clk 0:01:40.5]} 24. Rb7 {[%clk 0:02:04.8]} 24... Ne6 {[%clk 0:01:24.1]}
25. Rcb1 {[%clk 0:01:55.1]} 25... c5 {[%clk 0:01:22.6]} 26. Qf3 {[%clk
0:01:40.3]} 26... Ng5 {[%clk 0:01:09]} 27. Qxd5 {[%clk 0:01:37.4]} 27... cxd4
{[%clk 0:01:06.1]} 28. Qxd8 {[%clk 0:01:30.1]} 28... Rexd8 {[%clk 0:01:02.4]}
29. Nb5 {[%clk 0:01:27.8]} 29... dxe3 {[%clk 0:00:59.7]} 30. Nxe3 {[%clk
0:01:24.9]} 30... Ne4 {[%clk 0:00:58.4]} 31. g3 {[%clk 0:01:06]} 31... Rd2
{[%clk 0:00:46.3]} 32. Rf1 {[%clk 0:01:05.4]} 32... Nc3 {[%clk 0:00:35.9]} 33.
Nxc3 {[%clk 0:01:01.4]} 33... Bxc3 {[%clk 0:00:35.6]} 34. Rc1 {[%clk 0:00:53.1]}
34... Rdd8 {[%clk 0:00:29.3]} 35. Rb5 {[%clk 0:00:49.8]} 35... Bb4 {[%clk
0:00:25.5]} 36. Rxc8 {[%clk 0:00:48.8]} 36... Rxc8 {[%clk 0:00:25.5]} 37. Nd5
{[%clk 0:00:49.7]} 37... Rc1+ {[%clk 0:00:21.9]} 38. Kg2 {[%clk 0:00:49.5]}
38... Rc4 {[%clk 0:00:18.7]} 39. Ne3 {[%clk 0:00:49.1]} 39... Rc1 {[%clk
0:00:17.4]} 40. Nd5 {[%clk 0:00:49.1]} 40... Rc4 {[%clk 0:00:17.1]} 41. h4
{[%clk 0:00:44.2]} 41... Bd2 {[%clk 0:00:15]} 42. Nb6 {[%clk 0:00:44]} 42... Rb4
{[%clk 0:00:14.4]} 43. Rxb4 {[%clk 0:00:35.2]} 43... axb4 {[%clk 0:00:14.7]} 44.
Nc4 {[%clk 0:00:35.1]} 44... Bc3 {[%clk 0:00:13]} 45. a5 {[%clk 0:00:35.2]}
45... b3 {[%clk 0:00:11.7]} 46. a6 {[%clk 0:00:33.2]} 46... Bd4 {[%clk
0:00:11.9]} 47. Kf3 {[%clk 0:00:33.5]} 47... Kf8 {[%clk 0:00:11.6]} 48. Ke2
{[%clk 0:00:32.2]} 48... Ke7 {[%clk 0:00:11.4]} 49. f3 {[%clk 0:00:32.6]} 49...
Kd7 {[%clk 0:00:11.1]} 50. Kd3 {[%clk 0:00:33]} 50... Ba7 {[%clk 0:00:10.2]} 51.
Kc3 {[%clk 0:00:32.1]} 51... Kc6 {[%clk 0:00:10.2]} 52. Ne5+ {[%clk 0:00:30]}
52... Kb5 {[%clk 0:00:09.4]} 53. Nxf7 {[%clk 0:00:29.8]} 53... Ka4 {[%clk
0:00:07.5]} 54. Kb2 {[%clk 0:00:29.8]} 54... Bd4+ {[%clk 0:00:06.8]} 55. Kb1
{[%clk 0:00:29.9]} 55... Ka5 {[%clk 0:00:05.9]} 56. Ne5 {[%clk 0:00:27.4]} 56...
Kxa6 {[%clk 0:00:04.5]} 57. Nxg6 {[%clk 0:00:27.3]} 57... Bf2 {[%clk 0:00:04.5]}
58. g4 {[%clk 0:00:27.6]} 58... hxg4 {[%clk 0:00:04.7]} 59. fxg4 {[%clk
0:00:28.5]} 59... Kb5 {[%clk 0:00:04.7]} 60. h5 {[%clk 0:00:28.7]} 60... Be3
{[%clk 0:00:04.9]} 61. Ne5 {[%clk 0:00:26]} 61... Kc5 {[%clk 0:00:05.3]} 62. Nf3
{[%clk 0:00:25]} 62... Kd5 {[%clk 0:00:05.1]} 63. g5 {[%clk 0:00:25.4]} 63...
Ke6 {[%clk 0:00:05.4]} 64. Kb2 {[%clk 0:00:19.4]} 64... Kf5 {[%clk 0:00:05.4]}
65. h6 {[%clk 0:00:19.6]} 65... Kg6 {[%clk 0:00:05]} 66. Nh4+ {[%clk 0:00:18.5]}
66... Kh7 {[%clk 0:00:04.9]} 67. Nf3 {[%clk 0:00:17.3]} 67... Bxg5 {[%clk
0:00:05.2]} 68. Nxg5+ {[%clk 0:00:16.8]} 68... Kxh6 {[%clk 0:00:05.7]} 69. Kxb3
{[%clk 0:00:17.4]} 1/2-1/2